bitfinex/quotes_BTCUSD_20251009
["timestamp","ask_amount","ask_price","bid_price","bid_amount"]
[1760019052885,0.17858033,122270.0,122260.0,0.57286313]
[1760019053097,0.34215275,122270.0,122260.0,0.54785313]
[1760019053302,0.17858033,122270.0,122260.0,0.57286313]
[1760019053539,0.34215275,122270.0,122260.0,0.57286313]
[1760019053971,0.17858033,122270.0,122260.0,0.57286313]
[1760019054330,0.09545827,122270.0,122260.0,0.61064313]
[1760019054527,0.09545827,122270.0,122260.0,0.61060313]
[1760019054809,0.09545827,122270.0,122260.0,0.36220313]
[1760019054996,0.09545827,122270.0,122260.0,0.32438313]
[1760019055216,0.09545827,122270.0,122260.0,0.57278313]
[1760019056231,0.38389275,122270.0,122260.0,0.19630313]
[1760019056442,0.22032033,122270.0,122260.0,0.52970313]
[1760019056645,0.38389275,122270.0,122260.0,0.54740313]
[1760019056854,0.38389275,122270.0,122260.0,0.38381733]
[1760019057058,0.72389275,122270.0,122260.0,0.3334]
[1760019057279,0.59871033,122270.0,122260.0,0.08504]
[1760019057530,1.18368786,122270.0,122260.0,0.08504]
[1760019057748,1.18368786,122270.0,122260.0,0.33336]
[1760019057749,1.02011544,122270.0,122260.0,0.33336]
[1760019057960,0.09545826,122250.0,122240.0,0.28340098]
[1760019058169,0.09545826,122250.0,122240.0,0.26501098]
[1760019058382,0.09545826,122250.0,122240.0,0.34554098]
[1760019058609,0.09545826,122250.0,122240.0,0.55600098]
[1760019058825,0.46157576,122260.0,122250.0,0.16359918]
[1760019059040,0.58308782,122260.0,122250.0,0.2355592]
[1760019059245,0.56840782,122260.0,122250.0,0.23692114]
[1760019059470,0.52666782,122260.0,122250.0,0.52860114]
[1760019059674,0.52666782,122260.0,122250.0,0.56642114]
[1760019059880,0.3480875,122260.0,122250.0,0.56642114]
[1760019060108,0.44354576,122260.0,122250.0,0.31814114]
[1760019060322,0.3480875,122260.0,122250.0,0.56642114]
[1760019060592,0.44354576,122260.0,122250.0,0.52860114]
[1760019060868,0.43645826,122260.0,122250.0,0.56642114]
[1760019061120,0.43745826,122260.0,122250.0,0.28032114]
[1760019061634,0.56232032,122260.0,122250.0,0.16496112]
[1760019061907,0.52869657,122260.0,122250.0,0.49438112]
[1760019062168,0.43323831,122260.0,122250.0,0.49438112]
[1760019062378,0.52869657,122260.0,122250.0,0.45656112]
[1760019062596,0.002,122260.0,122250.0,0.24618112]
[1760019062801,0.002,122260.0,122250.0,0.54727033]
[1760019063886,0.001,122260.0,122250.0,0.54727033]
[1760019064091,0.00818573,122260.0,122250.0,0.50945033]
[1760019064782,0.00818573,122260.0,122250.0,0.54727033]
[1760019065466,0.10077904,122280.0,122270.0,0.16357242]
[1760019065696,0.10077904,122280.0,122270.0,0.29953705]
[1760019065911,0.10077904,122280.0,122270.0,0.54765705]
[1760019066123,0.10077904,122280.0,122270.0,0.69360911]
[1760019066551,0.10077904,122280.0,122270.0,0.69356911]
[1760019067220,0.10177904,122280.0,122270.0,1.03384911]
[1760019067663,0.10077904,122280.0,122270.0,1.03384911]
[1760019068584,0.1082743,122280.0,122270.0,0.78576911]
[1760019068779,0.10077904,122280.0,122270.0,1.09592824]
[1760019069487,0.10827302,122280.0,122270.0,1.09592824]
[1760019069896,0.10077904,122280.0,122270.0,1.09592824]
[1760019070150,0.0002,122290.0,122280.0,0.16355904]
[1760019070390,1e-08,122290.0,122280.0,0.39169789]
[1760019070623,1e-08,122290.0,122280.0,0.4070079]
[1760019070835,0.00050898,122290.0,122280.0,0.4070079]
[1760019071255,0.00050898,122290.0,122280.0,1.0802079]
[1760019071458,0.00050898,122290.0,122280.0,0.8322879]
[1760019071681,0.00050898,122290.0,122280.0,0.4070079]
[1760019071901,0.00050898,122290.0,122280.0,1.0802079]
[1760019072367,1e-08,122290.0,122280.0,0.8322879]
[1760019072629,1e-08,122290.0,122280.0,1.19728789]
[1760019072832,1e-08,122290.0,122280.0,1.47986152]
[1760019073044,1e-08,122290.0,122280.0,1.23198152]
[1760019073242,1e-08,122290.0,122280.0,1.49113396]
[1760019073461,1e-08,122290.0,122280.0,1.49109396]
[1760019073915,1e-08,122290.0,122280.0,1.49209396]
[1760019074522,1e-08,122290.0,122280.0,1.24325396]
[1760019074730,1e-08,122290.0,122280.0,1.49205396]
[1760019074955,1e-08,122290.0,122280.0,1.83321396]
[1760019075185,1e-08,122290.0,122280.0,1.83121396]
[1760019075397,1e-08,122290.0,122280.0,1.83221396]
[1760019075608,1e-08,122320.0,122310.0,0.16351892]
[1760019075823,1e-08,122320.0,122310.0,1.01086837]
[1760019076042,1e-08,122340.0,122330.0,0.16349219]
[1760019076270,0.00050667,122340.0,122330.0,0.60447425]
[1760019076477,0.00050667,122340.0,122330.0,0.94075424]
[1760019076478,1e-08,122340.0,122330.0,0.94075424]
[1760019076887,1e-08,122340.0,122330.0,0.9488159]
[1760019077064,1e-08,122340.0,122330.0,1.1138527]
[1760019077474,1e-08,122340.0,122330.0,1.17581263]
[1760019078451,1e-08,122340.0,122330.0,0.92909263]
[1760019078667,1e-08,122340.0,122330.0,0.83495105]
[1760019078877,1e-08,122340.0,122330.0,0.99946899]
[1760019079086,1e-08,122340.0,122330.0,1.08259105]
[1760019079698,1e-08,122340.0,122330.0,1.08159105]
[1760019079906,1e-08,122340.0,122330.0,1.1443356]
[1760019080586,1e-08,122340.0,122330.0,0.32570899]
[1760019080798,1e-08,122340.0,122330.0,0.24571219]
[1760019081005,1e-08,122340.0,122330.0,0.33071219]
[1760019081261,1e-08,122340.0,122330.0,0.57831219]
[1760019081469,1e-08,122340.0,122330.0,0.49327219]
[1760019081674,0.09545827,122340.0,122330.0,0.65826899]
[1760019081867,0.09545827,122340.0,122330.0,0.32570899]
[1760019082172,0.09545827,122340.0,122330.0,0.40970899]
[1760019082334,0.09545827,122340.0,122330.0,0.65726899]
[1760019082706,0.09545827,122340.0,122330.0,0.40970899]
[1760019082911,0.00254371,122340.0,122330.0,0.65722899]
[1760019083122,0.00254371,122340.0,122330.0,0.40970899]
[1760019083323,0.00254371,122340.0,122330.0,0.55486454]
[1760019083520,0.00254371,122340.0,122330.0,0.80238454]
[1760019083936,0.00254371,122340.0,122330.0,0.46986454]
[1760019084164,0.00254371,122340.0,122330.0,1.14242454]
[1760019084540,0.00254371,122340.0,122330.0,0.89494454]
[1760019084741,0.00254371,122340.0,122330.0,1.14242454]
[1760019085817,0.00254371,122340.0,122330.0,0.89494454]
[1760019086026,0.00254371,122340.0,122330.0,1.14238454]
[1760019086249,0.00254371,122340.0,122330.0,0.89494454]
[1760019086451,0.00254371,122340.0,122330.0,1.14238454]
[1760019086606,0.00254371,122340.0,122330.0,0.46986454]
[1760019086810,0.00254371,122340.0,122330.0,1.14234454]
[1760019087117,0.00254371,122340.0,122330.0,0.89494454]
[1760019087434,0.00254371,122340.0,122330.0,1.16734453]
[1760019087940,0.00254371,122340.0,122330.0,0.91994453]
[1760019088145,0.00254371,122340.0,122330.0,1.16730453]
[1760019088992,0.00254371,122340.0,122330.0,1.16930453]
[1760019089204,0.00254371,122340.0,122330.0,1.16926453]
[1760019089623,0.00254371,122340.0,122330.0,0.92190453]
[1760019089824,0.00254371,122340.0,122330.0,1.16922453]
[1760019090854,1e-08,122340.0,122330.0,1.53937643]
[1760019091002,1e-08,122340.0,122330.0,1.54391816]
[1760019091585,0.0002,122390.0,122380.0,0.16342539]
[1760019091786,0.0002,122390.0,122380.0,0.52994793]
[1760019091787,0.00035202,122390.0,122380.0,0.52994793]
[1760019091994,0.00035202,122390.0,122380.0,0.26118793]
[1760019092194,0.09581028,122390.0,122380.0,0.59342793]
[1760019092394,0.00035202,122390.0,122380.0,0.34618793]
[1760019092598,0.00035202,122390.0,122380.0,0.59342793]
[1760019092805,0.09781028,122390.0,122380.0,0.59342793]
[1760019093045,0.09981028,122390.0,122380.0,0.26118793]
[1760019093251,0.09981028,122390.0,122380.0,0.34618793]
[1760019093455,0.09981028,122390.0,122380.0,0.59338793]
[1760019093662,0.09781028,122390.0,122380.0,0.59338793]
[1760019093892,0.14242028,122390.0,122380.0,0.52986793]
[1760019094120,0.11669028,122390.0,122380.0,0.55498793]
[1760019094324,0.09781028,122390.0,122380.0,0.34618793]
[1760019094543,0.00235202,122390.0,122380.0,0.34618793]
[1760019094750,0.00235202,122390.0,122380.0,0.59334793]
[1760019094982,0.00035202,122390.0,122380.0,0.59334793]
[1760019095212,0.00235202,122390.0,122380.0,0.59334793]
[1760019095455,0.00135202,122390.0,122380.0,0.68473017]
[1760019095661,0.00035202,122390.0,122380.0,0.68473017]
[1760019095870,0.00035202,122390.0,122380.0,0.67646999]
[1760019096954,0.00035202,122390.0,122380.0,0.42930999]
[1760019097165,0.0002,122400.0,122390.0,0.16341204]
[1760019097344,0.0002,122400.0,122390.0,0.3823509]
[1760019097568,0.0002,122400.0,122390.0,0.46771559]
[1760019097775,0.00325031,122400.0,122390.0,0.46771559]
[1760019098215,0.00325031,122400.0,122390.0,1.13971559]
[1760019098633,0.00325031,122400.0,122390.0,0.71475559]
[1760019098848,0.00325031,122400.0,122390.0,0.46771559]
[1760019099058,0.00325031,122400.0,122390.0,1.13967559]
[1760019100529,0.00325031,122400.0,122390.0,1.13963559]
[1760019101532,0.00325031,122400.0,122390.0,0.46771559]
[1760019101745,0.00325031,122400.0,122390.0,0.89259559]
[1760019101746,0.01071503,122400.0,122390.0,0.89259559]
[1760019101930,0.01071503,122400.0,122390.0,1.13951559]
[1760019102331,0.01071503,122400.0,122390.0,0.4074709]
[1760019102531,0.01071503,122400.0,122390.0,0.61782884]
[1760019102532,0.01025783,122400.0,122390.0,0.61782884]
[1760019102751,0.01025783,122400.0,122390.0,0.65501884]
[1760019103417,0.01025783,122400.0,122390.0,0.57001884]
[1760019103637,0.01025783,122400.0,122390.0,0.65497884]
[1760019103858,0.01025783,122400.0,122390.0,0.32313884]
[1760019104059,0.01025783,122400.0,122390.0,0.65497884]
[1760019104264,0.10571609,122400.0,122390.0,0.65497884]
[1760019104475,0.68878478,122400.0,122390.0,0.08496]
[1760019104683,0.68878478,122400.0,122390.0,0.49521204]
[1760019104880,0.52538609,122400.0,122390.0,0.49521204]
[1760019105105,0.48824609,122400.0,122390.0,0.49521204]
[1760019105508,0.57136815,122400.0,122390.0,0.49521204]
[1760019105769,0.57236815,122400.0,122390.0,0.56444539]
[1760019106183,0.60950815,122400.0,122390.0,0.56440539]
[1760019107098,0.60950815,122400.0,122390.0,0.06923335]
[1760019107305,0.09545826,122390.0,122380.0,0.17976793]
[1760019107509,0.22857504,122390.0,122380.0,0.51152793]
[1760019108164,0.18604504,122390.0,122380.0,0.53631793]
[1760019108377,0.18604504,122390.0,122380.0,0.55367793]
[1760019108586,0.10292298,122390.0,122380.0,0.59208793]
[1760019108794,0.10292298,122390.0,122380.0,0.52888793]
[1760019108995,0.14545298,122390.0,122380.0,0.51152793]
[1760019109626,0.10292298,122390.0,122380.0,0.55367793]
[1760019109834,0.10292298,122390.0,122380.0,0.59204793]
[1760019110056,0.00746472,122390.0,122380.0,0.59204793]
[1760019110268,0.00746472,122390.0,122380.0,0.59200793]
[1760019111193,0.00746472,122390.0,122380.0,0.67508999]
[1760019111836,0.0002,122420.0,122410.0,0.16338534]
[1760019112048,0.0002,122420.0,122410.0,0.58056653]
[1760019112253,0.0002,122420.0,122410.0,0.60852374]
[1760019112464,0.0002,122420.0,122410.0,0.60848374]
[1760019112889,0.09565826,122420.0,122410.0,0.60848374]
[1760019113273,0.0002,122420.0,122410.0,0.60848374]
[1760019113526,0.0022,122420.0,122410.0,0.60848374]
[1760019113742,0.09765826,122420.0,122410.0,0.23847374]
[1760019113949,0.09765826,122420.0,122410.0,0.57003374]
[1760019114145,0.14018826,122420.0,122410.0,0.32343374]
[1760019114388,0.09765826,122420.0,122410.0,0.60844374]
[1760019114806,0.09565826,122420.0,122410.0,0.36184374]
[1760019114925,0.09565826,122420.0,122410.0,0.60844374]
[1760019115129,0.09765826,122420.0,122410.0,0.60844374]
[1760019115338,0.09765826,122420.0,122410.0,0.36184374]
[1760019115533,0.09765826,122420.0,122410.0,0.0750884]
[1760019115779,0.76382231,122420.0,122410.0,0.08496]
[1760019115978,1.35272676,122420.0,122410.0,0.33152]
[1760019116349,1.38287866,122420.0,122410.0,0.33152]
[1760019116950,0.79397421,122420.0,122410.0,0.33152]
[1760019117152,0.79397421,122420.0,122410.0,0.33148]
[1760019117357,0.79397421,122420.0,122410.0,0.29783316]
[1760019117572,0.79397421,122420.0,122410.0,0.38096782]
[1760019117746,1.38287866,122420.0,122410.0,0.33148]
[1760019117947,1.3866879,122420.0,122410.0,0.33148]
[1760019118149,0.79778345,122420.0,122410.0,0.08496]
[1760019118367,0.09545826,122390.0,122380.0,0.17976793]
[1760019118591,0.36038236,122390.0,122380.0,0.51120793]
[1760019118794,0.38452236,122390.0,122380.0,0.51120793]
[1760019119804,0.38452236,122390.0,122380.0,0.51116793]
[1760019120767,0.19697032,122390.0,122380.0,0.30713793]
[1760019120971,0.38452236,122390.0,122380.0,0.34774254]
[1760019121154,0.38452236,122390.0,122380.0,0.51116793]
[1760019121580,0.19697032,122390.0,122380.0,0.55357793]
[1760019121783,0.09545826,122400.0,122390.0,0.16341204]
[1760019121933,0.01859,122420.0,122410.0,0.16338534]
[1760019122137,0.08332206,122420.0,122410.0,0.30709387]
[1760019122345,0.09565826,122420.0,122410.0,0.57556534]
[1760019122971,0.09765826,122420.0,122410.0,0.53715534]
[1760019123401,0.13818826,122420.0,122410.0,0.49474534]
[1760019123604,0.13818826,122420.0,122410.0,0.55612942]
[1760019123808,0.10315813,122420.0,122410.0,0.35213942]
[1760019124015,0.00769987,122420.0,122410.0,0.63690942]
[1760019124226,0.0994675,122420.0,122410.0,0.39054942]
[1760019124459,0.00400924,122420.0,122410.0,0.63690942]
[1760019124662,0.1014675,122420.0,122410.0,0.63690942]
[1760019125231,0.27175884,122420.0,122410.0,0.55604942]
[1760019125364,0.22711956,122420.0,122410.0,0.55604942]
[1760019125570,0.20297956,122420.0,122410.0,0.59845942]
[1760019125814,0.18458956,122420.0,122410.0,0.39054942]
[1760019126022,0.1014675,122420.0,122410.0,0.63686942]
[1760019126883,0.00400924,122420.0,122410.0,0.63686942]
[1760019127181,0.00600924,122420.0,122410.0,0.63686942]
[1760019127384,0.00500924,122420.0,122410.0,0.63686942]
[1760019127596,0.00600924,122420.0,122410.0,0.63686942]
[1760019127837,0.00600924,122420.0,122410.0,0.39054942]
[1760019128479,0.00600924,122420.0,122410.0,0.63678942]
[1760019128897,0.00600924,122420.0,122410.0,0.71991148]
[1760019129104,0.00600924,122420.0,122410.0,0.63678942]
[1760019129329,0.00600924,122420.0,122410.0,0.63674942]
[1760019129545,0.00500924,122420.0,122410.0,0.63674942]
[1760019129747,0.00500924,122420.0,122410.0,0.39054942]
[1760019130168,0.00500924,122420.0,122410.0,0.63674942]
[1760019130808,0.00500924,122420.0,122410.0,0.39054942]
[1760019131001,0.00500924,122420.0,122410.0,0.63670942]
[1760019131222,0.00500924,122420.0,122410.0,0.39054942]
[1760019131427,0.00500924,122420.0,122410.0,0.63670942]
[1760019131846,0.00400924,122420.0,122410.0,0.39054942]
[1760019132037,0.00400924,122420.0,122410.0,0.63666942]
[1760019132874,0.00400924,122420.0,122410.0,0.71979148]
[1760019133081,0.00400924,122420.0,122410.0,0.47367148]
[1760019133289,0.00400924,122420.0,122410.0,0.71975148]
[1760019133523,1e-08,122420.0,122410.0,0.70602838]
[1760019133730,1e-08,122420.0,122410.0,1.07102837]
[1760019133934,1e-08,122420.0,122410.0,0.82494837]
[1760019134147,1e-08,122420.0,122410.0,0.7445301]
[1760019134363,1e-08,122420.0,122410.0,0.37498838]
[1760019134587,1e-08,122420.0,122410.0,0.29186632]
[1760019135006,1e-08,122420.0,122410.0,0.96270632]
[1760019136105,1e-08,122420.0,122410.0,0.29186632]
[1760019136506,1e-08,122420.0,122410.0,0.96266632]
[1760019136734,1e-08,122420.0,122410.0,0.71666632]
[1760019136962,1e-08,122420.0,122410.0,0.79978838]
[1760019137180,1e-08,122420.0,122410.0,1.04578838]
[1760019137591,1e-08,122420.0,122410.0,1.04570838]
[1760019137801,1e-08,122420.0,122410.0,1.04566838]
[1760019138012,1e-08,122420.0,122410.0,0.79970838]
[1760019138244,1e-08,122420.0,122410.0,1.04566838]
[1760019138707,1e-08,122420.0,122410.0,0.37498838]
[1760019138937,1e-08,122420.0,122410.0,1.04562838]
[1760019140359,1e-08,122420.0,122410.0,1.04558838]
[1760019140623,1e-08,122420.0,122410.0,1.05013011]
[1760019140880,1e-08,122420.0,122410.0,1.445282]
[1760019141152,1e-08,122420.0,122410.0,1.46979852]
[1760019141628,1e-08,122420.0,122410.0,1.44844669]
[1760019141859,1e-08,122420.0,122410.0,1.77920669]
[1760019142092,1e-08,122420.0,122410.0,1.10510496]
[1760019142352,1e-08,122420.0,122410.0,0.37478845]
[1760019142580,1e-08,122420.0,122410.0,1.38734845]
[1760019142811,1e-08,122420.0,122410.0,1.04734845]
[1760019143041,1e-08,122420.0,122410.0,0.71578845]
[1760019143282,1e-08,122420.0,122410.0,1.38734845]
[1760019143944,1e-08,122420.0,122410.0,1.38634845]
[1760019144813,1e-08,122420.0,122410.0,1.38534845]
[1760019145242,1e-08,122420.0,122410.0,1.38526845]
[1760019146142,1e-08,122420.0,122410.0,1.38522845]
[1760019146732,1e-08,122420.0,122410.0,1.41022844]
[1760019147077,1e-08,122420.0,122410.0,1.44488207]
[1760019148213,1e-08,122420.0,122410.0,1.44588207]
[1760019148902,1e-08,122420.0,122410.0,1.44584207]
[1760019149113,1e-08,122420.0,122410.0,1.44484207]
[1760019149325,1e-08,122420.0,122410.0,1.54584206]
[1760019149537,7e-05,122450.0,122440.0,0.53288703]
[1760019149730,1e-08,122450.0,122440.0,0.98571899]
[1760019149955,1e-08,122450.0,122440.0,1.04720899]
[1760019150389,1e-08,122450.0,122440.0,1.1018727]
[1760019151290,1e-08,122450.0,122440.0,0.8572327]
[1760019151511,1e-08,122450.0,122440.0,1.7822327]
[1760019152375,1e-08,122470.0,122460.0,0.55847052]
[1760019152594,0.09545826,122510.0,122500.0,0.1632653]
[1760019152804,0.00763314,122510.0,122500.0,0.04228]
[1760019153006,0.00015179,122510.0,122500.0,0.58900183]
[1760019153224,0.00763314,122510.0,122500.0,0.5726753]
[1760019153433,0.09561005,122510.0,122500.0,0.6482153]
[1760019153641,0.1030914,122510.0,122500.0,0.6482153]
[1760019153882,0.1040914,122510.0,122500.0,0.6482153]
[1760019154091,0.1050914,122510.0,122500.0,0.6481753]
[1760019154300,0.1040914,122510.0,122500.0,0.4026953]
[1760019154510,0.00763314,122510.0,122500.0,0.4026953]
[1760019154743,0.1030914,122510.0,122500.0,0.9878153]
[1760019155374,0.1030914,122510.0,122500.0,0.7423753]
[1760019155585,0.1030914,122510.0,122500.0,0.3177753]
[1760019155790,0.1030914,122510.0,122500.0,0.6481353]
[1760019156722,0.1030914,122510.0,122500.0,0.15451]
[1760019156936,0.12820378,122510.0,122500.0,0.5358653]
[1760019157151,0.10308378,122510.0,122500.0,0.2055453]
[1760019157361,0.30902575,122510.0,122500.0,0.5358253]
[1760019157575,0.30902575,122510.0,122500.0,0.01748]
[1760019157833,0.30902575,122510.0,122500.0,0.1807453]
[1760019158051,0.09545826,122500.0,122490.0,0.18075673]
[1760019158269,0.09545826,122500.0,122490.0,0.53579673]
[1760019158490,0.12057826,122500.0,122490.0,0.53579673]
[1760019158705,0.13814826,122500.0,122490.0,0.45087673]
[1760019158917,0.09545826,122500.0,122490.0,0.65244353]
[1760019159353,0.10546721,122500.0,122490.0,0.65244353]
[1760019160207,0.10546729,122500.0,122490.0,0.65244353]
[1760019160647,0.01000903,122500.0,122490.0,0.65244353]
[1760019160861,0.00253871,122500.0,122490.0,0.65240353]
[1760019161072,0.00253871,122500.0,122490.0,0.32224353]
[1760019161289,0.01000907,122500.0,122490.0,0.99200353]
[1760019162330,0.01000907,122500.0,122490.0,0.32224353]
[1760019162590,0.01000907,122500.0,122490.0,0.20555673]
[1760019162797,0.17327437,122500.0,122490.0,0.04228]
[1760019163036,0.34647263,122500.0,122490.0,0.33008]
[1760019163251,0.09545826,122490.0,122480.0,0.18893396]
[1760019163481,0.70447818,122490.0,122480.0,0.01748]
[1760019163701,1.18690024,122490.0,122480.0,0.08488]
[1760019163940,0.16330529,122470.0,122460.0,0.01693]
[1760019164167,0.27720355,122470.0,122460.0,0.26512863]
[1760019164433,0.25877689,122460.0,122450.0,0.18081197]
[1760019164659,0.38361895,122460.0,122440.0,0.26888355]
[1760019164872,0.38361895,122460.0,122450.0,0.08488]
[1760019164873,0.41997895,122460.0,122450.0,0.08488]
[1760019165092,0.41997895,122460.0,122450.0,0.33054616]
[1760019165306,0.41997895,122460.0,122450.0,0.08538616]
[1760019165532,0.83980988,122460.0,122450.0,0.33054616]
[1760019166180,0.83980988,122460.0,122450.0,0.00050616]
[1760019166389,0.83980988,122460.0,122450.0,0.33050616]
[1760019166594,0.84031778,122460.0,122450.0,0.33050616]
[1760019167034,0.42048685,122460.0,122450.0,0.33050616]
[1760019167236,0.84031778,122460.0,122450.0,0.13477128]
[1760019167443,0.84031778,122460.0,122450.0,0.37989128]
[1760019167657,0.42048685,122460.0,122450.0,0.54322325]
[1760019168310,0.17908822,122460.0,122450.0,0.56784325]
[1760019168520,0.17908822,122460.0,122450.0,0.62106325]
[1760019168742,0.08362996,122460.0,122450.0,0.62106325]
[1760019168951,0.09696616,122460.0,122450.0,0.62102325]
[1760019169404,0.0015079,122460.0,122450.0,0.62102325]
[1760019169619,0.09696616,122460.0,122450.0,0.62102325]
[1760019169825,0.33836479,122460.0,122450.0,0.37985128]
[1760019170033,0.42148685,122460.0,122450.0,0.49379813]
[1760019170660,0.42148685,122460.0,122450.0,0.53551813]
[1760019170661,0.18008822,122460.0,122450.0,0.53551813]
[1760019171546,0.09696616,122460.0,122450.0,0.57159813]
[1760019171762,0.09696616,122460.0,122450.0,0.32655813]
[1760019171986,0.0025079,122460.0,122450.0,0.37729644]
[1760019172414,0.0025079,122460.0,122450.0,0.7054185]
[1760019172845,0.0005079,122460.0,122450.0,0.7054185]
[1760019173903,0.0005079,122460.0,122450.0,0.4604185]
[1760019174116,0.01876,122510.0,122500.0,0.16308745]
[1760019174327,0.09061792,122510.0,122500.0,0.58283302]
[1760019174550,0.00749586,122510.0,122500.0,0.56742406]
[1760019174764,0.11110885,122510.0,122500.0,0.56742406]
[1760019174978,0.31608082,122510.0,122500.0,0.04983661]
[1760019175205,0.39104815,122510.0,122500.0,0.36247661]
[1760019175428,0.42755994,122510.0,122500.0,0.4931053]
[1760019175639,0.39119994,122510.0,122500.0,0.4931053]
[1760019175852,0.22994797,122510.0,122500.0,0.4931053]
[1760019176056,0.23194797,122510.0,122500.0,0.4931053]
[1760019176292,0.19854715,122510.0,122500.0,0.56047463]
[1760019176502,0.19854715,122510.0,122500.0,0.60229463]
[1760019176712,0.36179912,122510.0,122500.0,0.60229463]
[1760019176924,0.19854715,122510.0,122500.0,0.60229463]
[1760019177161,0.36179912,122510.0,122500.0,0.10918933]
[1760019177381,0.25875022,122480.0,122470.0,0.18050491]
[1760019177593,0.09545826,122480.0,122470.0,0.53492491]
[1760019177800,0.25875022,122480.0,122470.0,0.53492491]
[1760019178011,0.09545826,122480.0,122470.0,0.61492171]
[1760019178216,0.09545826,122480.0,122470.0,0.65100171]
[1760019178452,0.19734032,122500.0,122490.0,0.16327863]
[1760019178659,0.18607975,122500.0,122490.0,0.46632649]
[1760019178864,0.18607975,122500.0,122490.0,0.44999863]
[1760019179070,0.10295769,122500.0,122490.0,0.49114286]
[1760019179297,0.00749943,122500.0,122490.0,0.28238286]
[1760019179751,0.00950011,122500.0,122490.0,0.53483863]
[1760019180176,0.73509662,122500.0,122490.0,0.49295863]
[1760019180390,0.19011132,122500.0,122490.0,0.51757863]
[1760019180594,0.10598926,122500.0,122490.0,0.32611863]
[1760019180804,0.10598926,122500.0,122490.0,0.57091863]
[1760019181027,0.010531,122500.0,122490.0,0.64606566]
[1760019181237,0.00203089,122500.0,122490.0,0.64602566]
[1760019181458,0.00953107,122500.0,122490.0,0.24815863]
[1760019181662,0.10498933,122500.0,122490.0,0.53479863]
[1760019181874,0.10498933,122500.0,122490.0,0.57087863]
[1760019182082,0.09748915,122500.0,122490.0,0.57087863]
[1760019182520,0.09748915,122500.0,122490.0,0.04188]
[1760019182720,0.09748915,122500.0,122490.0,0.59096578]
[1760019182933,0.09748915,122500.0,122490.0,0.62704578]
[1760019183165,0.00203089,122500.0,122490.0,0.38232578]
[1760019183376,0.00203089,122500.0,122490.0,0.62704578]
[1760019184053,0.00203089,122500.0,122490.0,0.38232578]
[1760019184262,0.00203089,122500.0,122490.0,0.62700578]
[1760019185170,0.00203089,122500.0,122490.0,0.29744578]
[1760019185394,0.00203089,122500.0,122490.0,0.96664578]
[1760019187150,0.00203089,122500.0,122490.0,0.80508784]
[1760019187414,0.00015179,122510.0,122500.0,0.1632653]
[1760019187627,1e-08,122510.0,122500.0,0.33454275]
[1760019187848,1e-08,122510.0,122500.0,0.36370448]
[1760019188284,1e-08,122510.0,122500.0,0.60830448]
[1760019188758,1e-08,122510.0,122500.0,0.61630448]
[1760019189171,1e-08,122510.0,122500.0,0.64878063]
[1760019189373,1e-08,122510.0,122500.0,1.41282063]
[1760019189611,1e-08,122510.0,122500.0,1.1637189]
[1760019189821,1e-08,122510.0,122500.0,0.98830063]
[1760019190075,1e-08,122510.0,122500.0,1.41278063]
[1760019190332,1e-08,122510.0,122500.0,1.41378063]
[1760019190752,1e-08,122510.0,122500.0,1.41478063]
[1760019191791,1e-08,122510.0,122500.0,1.41474063]
[1760019192013,1e-08,122510.0,122500.0,1.41466063]
[1760019192230,1e-08,122510.0,122500.0,0.40618063]
[1760019192460,1e-08,122510.0,122500.0,1.17018063]
[1760019192679,1e-08,122510.0,122500.0,1.41462063]
[1760019193332,1e-08,122520.0,122510.0,0.50325197]
[1760019193586,1e-08,122520.0,122510.0,1.01959272]
[1760019193834,1e-08,122520.0,122510.0,1.04276272]
[1760019194068,1e-08,122520.0,122510.0,0.79832272]
[1760019194316,1e-08,122520.0,122510.0,0.80286445]
[1760019194550,1e-08,122520.0,122510.0,1.04726445]
[1760019194781,0.01288043,122570.0,122560.0,0.16318537]
[1760019195011,0.01303216,122570.0,122560.0,0.8816126]
[1760019195251,0.01303216,122570.0,122560.0,0.9047826]
[1760019195484,0.01303216,122570.0,122560.0,0.9412126]
[1760019196461,0.0002,122580.0,122560.0,0.9412126]
[1760019196462,0.0002,122580.0,122560.0,0.77997466]
[1760019196694,0.0002,122580.0,122570.0,0.89499552]
[1760019196928,0.0002,122580.0,122570.0,0.90764404]
[1760019197158,0.0002,122580.0,122570.0,0.93081404]
[1760019197874,0.0002,122580.0,122570.0,1.35509404]
[1760019198089,0.0002,122580.0,122570.0,0.34649404]
[1760019198335,0.0002,122580.0,122570.0,0.68769198]
[1760019198564,0.09565826,122580.0,122570.0,0.93197198]
[1760019198796,0.0002,122580.0,122570.0,0.68769198]
[1760019199042,0.0002,122580.0,122570.0,1.01505404]
[1760019199734,0.09565826,122580.0,122570.0,0.34649404]
[1760019199974,0.09565826,122580.0,122570.0,1.01505404]
[1760019200290,0.0002,122590.0,122580.0,0.16315875]
[1760019200435,0.0002,122590.0,122580.0,0.2819562]
[1760019200641,0.0002,122590.0,122580.0,0.3585862]
[1760019201102,0.0002,122590.0,122580.0,0.38307092]
[1760019202154,0.0002,122590.0,122580.0,0.44548562]
[1760019202360,0.0002,122590.0,122580.0,1.11392562]
[1760019203254,0.0002,122590.0,122580.0,0.86976562]
[1760019203682,0.0002,122590.0,122580.0,1.11384562]
[1760019203900,0.0002,122590.0,122580.0,0.36236356]
[1760019204126,0.00375058,122590.0,122580.0,1.00619884]
[1760019205443,0.00375058,122590.0,122580.0,1.0893209]
[1760019205657,0.00375058,122590.0,122580.0,1.0892809]
[1760019205867,0.00375058,122590.0,122580.0,0.4210009]
[1760019206099,0.00375058,122590.0,122580.0,0.33787884]
[1760019206323,0.00375058,122590.0,122580.0,0.90802875]
[1760019206753,0.0112297,122590.0,122580.0,0.90802875]
[1760019207385,0.0112297,122590.0,122580.0,0.90798875]
[1760019208106,0.0112297,122590.0,122580.0,1.33111081]
[1760019208349,0.0112297,122590.0,122580.0,1.16714761]
[1760019208590,0.0112297,122590.0,122580.0,1.41110761]
[1760019209980,0.0112297,122590.0,122580.0,1.47127115]
[1760019210437,0.0112297,122590.0,122580.0,1.47123115]
[1760019210697,0.0112297,122590.0,122580.0,1.49571795]
[1760019210937,7e-05,122610.0,122600.0,0.16313213]
[1760019211166,0.00057566,122610.0,122600.0,0.19998928]
[1760019211369,0.00057566,122610.0,122600.0,0.25958928]
[1760019211622,0.00057566,122610.0,122600.0,0.22650853]
[1760019211828,0.09603392,122610.0,122600.0,0.84743519]
[1760019212036,0.19513331,122610.0,122600.0,0.84743519]
[1760019212453,0.23725331,122610.0,122600.0,0.13927519]
[1760019212667,0.23725331,122610.0,122600.0,0.46791519]
[1760019213320,0.21286331,122610.0,122600.0,0.33258781]
[1760019213534,0.40037214,122610.0,122600.0,0.24110519]
[1760019213756,0.40037214,122610.0,122600.0,0.46787519]
[1760019213969,0.40137214,122610.0,122600.0,0.46787519]
[1760019214183,0.16313213,122600.0,122590.0,0.1801636]
[1760019214398,0.37440579,122600.0,122590.0,0.0848]